[Event "Late-Titled-Tuesday-Blitz-February-06-2024"]
[Site "Chess.com"]
[Date "2024.02.06"]
[Round "4"]
[White "matagordo"]
[Black "stepanosinovsky"]
[Result "1-0"]
[WhiteElo "2234"]
[BlackElo "2374"]
[TimeControl "180+1"]
[EndTime "14:39:30 PST"]
[Termination "matagordo won on time"]

1. d4 {[%clk 0:02:57.7]} 1... Nf6 {[%clk 0:02:36.4]} 2. Bf4 {[%clk 0:02:57]}
2... g6 {[%clk 0:02:37.3]} 3. Nc3 {[%clk 0:02:56.6]} 3... Bg7 {[%clk 0:02:38.2]}
4. e4 {[%clk 0:02:57.3]} 4... O-O {[%clk 0:02:39.1]} 5. Qd2 {[%clk 0:02:57.4]}
5... d6 {[%clk 0:02:39.8]} 6. O-O-O {[%clk 0:02:58]} 6... Re8 {[%clk 0:02:31.4]}
7. Bh6 {[%clk 0:02:57.5]} 7... Bh8 {[%clk 0:02:31.6]} 8. h4 {[%clk 0:02:57.3]}
8... Nc6 {[%clk 0:02:25.7]} 9. h5 {[%clk 0:02:47.4]} 9... e5 {[%clk 0:02:21.8]}
10. d5 {[%clk 0:02:43.9]} 10... Nd4 {[%clk 0:02:20.1]} 11. hxg6 {[%clk
0:02:42.9]} 11... fxg6 {[%clk 0:02:11.1]} 12. Bg5 {[%clk 0:02:43]} 12... Qe7
{[%clk 0:01:50.4]} 13. Nge2 {[%clk 0:02:40.4]} 13... Qf7 {[%clk 0:01:38.9]} 14.
f3 {[%clk 0:02:32.9]} 14... c5 {[%clk 0:01:31.9]} 15. Kb1 {[%clk 0:02:01.2]}
15... b5 {[%clk 0:01:19.5]} 16. Nxd4 {[%clk 0:01:56.8]} 16... exd4 {[%clk
0:01:15.6]} 17. Nxb5 {[%clk 0:01:56.4]} 17... Qd7 {[%clk 0:01:12.2]} 18. Qf4
{[%clk 0:01:28.7]} 18... Rb8 {[%clk 0:00:33.9]} 19. Bxf6 {[%clk 0:01:01.3]}
19... Rf8 {[%clk 0:00:19.8]} 20. Qxd6 {[%clk 0:00:51.6]} 20... Rxf6 {[%clk
0:00:19.6]} 21. Qxb8 {[%clk 0:00:48.2]} 21... Rb6 {[%clk 0:00:19.6]} 22. Qh2
{[%clk 0:00:42.9]} 22... a6 {[%clk 0:00:18.7]} 23. Na3 {[%clk 0:00:39.9]} 23...
d3 {[%clk 0:00:17.9]} 24. Bxd3 {[%clk 0:00:39.6]} 24... Rxb2+ {[%clk 0:00:17.5]}
25. Kc1 {[%clk 0:00:38.1]} 25... Rxa2 {[%clk 0:00:16.3]} 26. d6 {[%clk
0:00:30.8]} 26... Rxa3 {[%clk 0:00:06.9]} 27. Bc4+ {[%clk 0:00:28.5]} 27... Kf8
{[%clk 0:00:06.9]} 28. Qf4+ {[%clk 0:00:26]} 28... Ke8 {[%clk 0:00:06.1]} 29.
Kd2 {[%clk 0:00:16.8]} 29... Bc3+ {[%clk 0:00:07]} 30. Ke2 {[%clk 0:00:16.6]}
30... Bd4 {[%clk 0:00:04.8]} 31. Qh4 {[%clk 0:00:04.3]} 31... Rc3 {[%clk
0:00:02.2]} 32. Bd3 {[%clk 0:00:04.7]} 32... c4 {[%clk 0:00:01.9]} 33. Qxh7
{[%clk 0:00:03.9]} 33... Qxh7 {[%clk 0:00:01.6]} 34. Rxh7 {[%clk 0:00:04.8]}
34... cxd3+ {[%clk 0:00:02.2]} 35. Rxd3 {[%clk 0:00:05.3]} 35... Rxc2+ {[%clk
0:00:02.3]} 36. Rd2 {[%clk 0:00:05.5]} 36... Rc3 {[%clk 0:00:02.6]} 37. Rxd4
{[%clk 0:00:05.3]} 37... Bd7 {[%clk 0:00:01.6]} 38. Rh8+ {[%clk 0:00:05.4]}
38... Kf7 {[%clk 0:00:02]} 39. Rh7+ {[%clk 0:00:06.1]} 39... Ke6 {[%clk
0:00:02.6]} 40. Re7+ {[%clk 0:00:06.8]} 40... Kf6 {[%clk 0:00:02.8]} 41. Rxd7
{[%clk 0:00:07.5]} 41... a5 {[%clk 0:00:02.9]} 42. Ra7 {[%clk 0:00:07.8]} 42...
a4 {[%clk 0:00:02.7]} 43. d7 {[%clk 0:00:08.2]} 43... a3 {[%clk 0:00:02.8]} 44.
d8=Q+ {[%clk 0:00:08.3]} 1-0

[Event "Late-Titled-Tuesday-Blitz-February-06-2024"]
[Site "Chess.com"]
[Date "2024.02.06"]
[Round "4"]
[White "dedpihto_v_kozhanom_palto"]
[Black "AryanTari"]
[Result "1-0"]
[WhiteElo "2703"]
[BlackElo "2917"]
[TimeControl "180+1"]
[EndTime "14:39:32 PST"]
[Termination "dedpihto_v_kozhanom_palto won by resignation"]

1. c4 {[%clk 0:03:00.9]} 1... e5 {[%clk 0:02:50.3]} 2. Nc3 {[%clk 0:03:01.1]}
2... Nf6 {[%clk 0:02:50.2]} 3. Nf3 {[%clk 0:03:01.7]} 3... e4 {[%clk 0:02:49.9]}
4. Ng5 {[%clk 0:03:01.2]} 4... c6 {[%clk 0:02:50.4]} 5. Ngxe4 {[%clk 0:03:01.4]}
5... Nxe4 {[%clk 0:02:51.3]} 6. Nxe4 {[%clk 0:03:02.1]} 6... d5 {[%clk
0:02:51.8]} 7. cxd5 {[%clk 0:03:02.8]} 7... cxd5 {[%clk 0:02:52.7]} 8. Ng3
{[%clk 0:03:03.5]} 8... h5 {[%clk 0:02:53.3]} 9. e3 {[%clk 0:03:04.2]} 9... h4
{[%clk 0:02:50.3]} 10. Ne2 {[%clk 0:03:04.6]} 10... Nc6 {[%clk 0:02:49.9]} 11.
d4 {[%clk 0:03:04.8]} 11... Bd6 {[%clk 0:02:09.2]} 12. Nf4 {[%clk 0:02:59.7]}
12... Bxf4 {[%clk 0:02:05.1]} 13. exf4 {[%clk 0:03:00.6]} 13... Qb6 {[%clk
0:02:01.3]} 14. Be3 {[%clk 0:02:54.3]} 14... Qxb2 {[%clk 0:02:00.5]} 15. Bd3
{[%clk 0:02:40.8]} 15... Qc3+ {[%clk 0:01:52.7]} 16. Ke2 {[%clk 0:02:36.1]}
16... Kf8 {[%clk 0:01:17.2]} 17. Re1 {[%clk 0:02:21.7]} 17... h3 {[%clk
0:00:55]} 18. g3 {[%clk 0:01:59.6]} 18... Nxd4+ {[%clk 0:00:39.7]} 19. Kf1
{[%clk 0:01:59.6]} 19... Bg4 {[%clk 0:00:40.3]} 20. Bxd4 {[%clk 0:01:46.5]}
20... Qxd4 {[%clk 0:00:38]} 21. Qxg4 {[%clk 0:01:46.3]} 21... Qxd3+ {[%clk
0:00:38.2]} 22. Kg1 {[%clk 0:01:47]} 22... g6 {[%clk 0:00:27.9]} 23. Rad1 {[%clk
0:01:45.7]} 23... Qc3 {[%clk 0:00:28.1]} 24. f5 {[%clk 0:01:21.8]} 24... gxf5
{[%clk 0:00:25.1]} 25. Qxf5 {[%clk 0:01:22.4]} 25... Rd8 {[%clk 0:00:23.3]} 26.
Re3 {[%clk 0:01:19.7]} 26... Qg7 {[%clk 0:00:17.8]} 27. Rde1 {[%clk 0:01:12]}
27... Qg6 {[%clk 0:00:13.2]} 28. Qe5 {[%clk 0:01:07.9]} 28... Kg8 {[%clk
0:00:10.9]} 29. Rf3 {[%clk 0:00:50.3]} 29... Rh5 {[%clk 0:00:09.4]} 30. Qc7
{[%clk 0:00:47.8]} 30... Rd6 {[%clk 0:00:04.8]} 31. Qxb7 {[%clk 0:00:27.4]}
31... Re6 {[%clk 0:00:05.2]} 32. Rfe3 {[%clk 0:00:20.6]} 32... Rxe3 {[%clk
0:00:03.3]} 33. Rxe3 {[%clk 0:00:21.5]} 33... Kg7 {[%clk 0:00:03.5]} 34. Rf3
{[%clk 0:00:10.8]} 34... Re5 {[%clk 0:00:03.4]} 35. Qb2 {[%clk 0:00:08.7]} 35...
Qe6 {[%clk 0:00:03.7]} 36. Re3 {[%clk 0:00:08.3]} 36... f6 {[%clk 0:00:04.3]}
37. Rxe5 {[%clk 0:00:08.3]} 37... fxe5 {[%clk 0:00:04.6]} 38. Qb7+ {[%clk
0:00:07.8]} 38... Kg6 {[%clk 0:00:04.6]} 39. Qxa7 {[%clk 0:00:07.5]} 39... d4
{[%clk 0:00:05.2]} 40. Qb7 {[%clk 0:00:07]} 40... Qxa2 {[%clk 0:00:04]} 41. Qe4+
{[%clk 0:00:06.7]} 41... Kf6 {[%clk 0:00:04.6]} 42. Qh4+ {[%clk 0:00:06.5]}
42... Kf7 {[%clk 0:00:03.7]} 43. Qh7+ {[%clk 0:00:05.5]} 43... Kf6 {[%clk
0:00:03.6]} 44. Qh8+ {[%clk 0:00:04.3]} 44... Ke6 {[%clk 0:00:02.6]} 45. Qg8+
{[%clk 0:00:04.4]} 45... Kf5 {[%clk 0:00:02.5]} 46. Qxa2 {[%clk 0:00:05.3]} 1-0

[Event "Late-Titled-Tuesday-Blitz-February-06-2024"]
[Site "Chess.com"]
[Date "2024.02.06"]
[Round "4"]
[White "KaydenTroffChess"]
[Black "HalfIsCrayfish"]
[Result "1-0"]
[WhiteElo "2846"]
[BlackElo "2578"]
[TimeControl "180+1"]
[EndTime "14:39:35 PST"]
[Termination "KaydenTroffChess won on time"]

1. d4 {[%clk 0:03:00.9]} 1... Nf6 {[%clk 0:02:59.8]} 2. Nf3 {[%clk 0:03:01]}
2... g6 {[%clk 0:02:59.7]} 3. Bg5 {[%clk 0:03:01.2]} 3... Bg7 {[%clk 0:03:00]}
4. Nc3 {[%clk 0:03:01.8]} 4... d5 {[%clk 0:02:58.2]} 5. Bxf6 {[%clk 0:03:01.9]}
5... Bxf6 {[%clk 0:02:59.1]} 6. e4 {[%clk 0:03:02]} 6... dxe4 {[%clk 0:02:57.1]}
7. Nxe4 {[%clk 0:03:02.9]} 7... O-O {[%clk 0:02:53.8]} 8. Nxf6+ {[%clk
0:03:00.6]} 8... exf6 {[%clk 0:02:54.7]} 9. Be2 {[%clk 0:03:00.9]} 9... c6
{[%clk 0:02:47.5]} 10. O-O {[%clk 0:02:59.7]} 10... Bg4 {[%clk 0:02:45.6]} 11.
h3 {[%clk 0:02:59.5]} 11... Be6 {[%clk 0:02:40.6]} 12. Qd2 {[%clk 0:02:50]}
12... Nd7 {[%clk 0:02:35.2]} 13. Rad1 {[%clk 0:02:46.7]} 13... Nb6 {[%clk
0:02:33]} 14. b3 {[%clk 0:02:45.9]} 14... Qd7 {[%clk 0:02:31.5]} 15. c4 {[%clk
0:02:45.8]} 15... Rad8 {[%clk 0:02:29.8]} 16. Qf4 {[%clk 0:02:45.7]} 16... Kg7
{[%clk 0:02:25.8]} 17. a4 {[%clk 0:02:31.9]} 17... Rfe8 {[%clk 0:02:23.8]} 18.
Rfe1 {[%clk 0:02:28.7]} 18... Bf5 {[%clk 0:02:14.5]} 19. a5 {[%clk 0:02:26.3]}
19... Nc8 {[%clk 0:02:11.6]} 20. Nh4 {[%clk 0:02:20.1]} 20... Bc2 {[%clk
0:02:05]} 21. Rc1 {[%clk 0:02:16.4]} 21... Be4 {[%clk 0:00:57.7]} 22. Bg4 {[%clk
0:01:25.3]} 22... f5 {[%clk 0:00:56.8]} 23. Bf3 {[%clk 0:01:25.3]} 23... Qxd4
{[%clk 0:00:49.6]} 24. Rcd1 {[%clk 0:01:19.6]} 24... Qf6 {[%clk 0:00:44.5]} 25.
Rxd8 {[%clk 0:01:08.7]} 25... Rxd8 {[%clk 0:00:43.6]} 26. Bxe4 {[%clk
0:01:08.2]} 26... fxe4 {[%clk 0:00:43.6]} 27. Qxf6+ {[%clk 0:01:06.9]} 27...
Kxf6 {[%clk 0:00:43.7]} 28. Rxe4 {[%clk 0:01:07.4]} 28... Rd1+ {[%clk
0:00:39.5]} 29. Kh2 {[%clk 0:01:07.1]} 29... Rd3 {[%clk 0:00:39.9]} 30. b4
{[%clk 0:01:06.4]} 30... Nd6 {[%clk 0:00:38.9]} 31. Rf4+ {[%clk 0:01:05.7]}
31... Ke6 {[%clk 0:00:34]} 32. Nf3 {[%clk 0:01:02.6]} 32... f5 {[%clk
0:00:29.2]} 33. g4 {[%clk 0:00:54.5]} 33... Ne4 {[%clk 0:00:14.2]} 34. gxf5+
{[%clk 0:00:50.6]} 34... gxf5 {[%clk 0:00:15.1]} 35. Kg2 {[%clk 0:00:50]} 35...
Rc3 {[%clk 0:00:12.5]} 36. c5 {[%clk 0:00:36.2]} 36... Ra3 {[%clk 0:00:12.5]}
37. Rh4 {[%clk 0:00:36]} 37... Ra2 {[%clk 0:00:11.1]} 38. Kg1 {[%clk 0:00:23.3]}
38... Nxf2 {[%clk 0:00:08.3]} 39. Rxh7 {[%clk 0:00:22.8]} 39... Ne4 {[%clk
0:00:03.8]} 40. Rxb7 {[%clk 0:00:20.8]} 40... Ra3 {[%clk 0:00:04.3]} 41. Nd4+
{[%clk 0:00:18.7]} 41... Ke5 {[%clk 0:00:04]} 42. Nxc6+ {[%clk 0:00:18.8]} 42...
Kf4 {[%clk 0:00:04.7]} 43. Rg7 {[%clk 0:00:17.3]} 43... Ra1+ {[%clk 0:00:04.5]}
44. Kh2 {[%clk 0:00:17.6]} 44... Kf3 {[%clk 0:00:04.1]} 45. Nd4+ {[%clk
0:00:17.2]} 45... Ke3 {[%clk 0:00:04.1]} 46. Nxf5+ {[%clk 0:00:17.2]} 46... Kf3
{[%clk 0:00:04.4]} 47. Rg2 {[%clk 0:00:16.7]} 47... Nf2 {[%clk 0:00:03.9]} 48.
Nh4+ {[%clk 0:00:16.6]} 48... Ke2 {[%clk 0:00:03.3]} 49. Kg3 {[%clk 0:00:15.4]}
49... Ra3+ {[%clk 0:00:03.6]} 50. Kf4 {[%clk 0:00:15.8]} 50... Rxh3 {[%clk
0:00:02.8]} 51. Nf5 {[%clk 0:00:15.8]} 51... Rf3+ {[%clk 0:00:03.2]} 52. Ke5
{[%clk 0:00:16.4]} 52... Rb3 {[%clk 0:00:01.9]} 53. Nd4+ {[%clk 0:00:16.3]}
53... Kd3 {[%clk 0:00:01.5]} 54. Nxb3 {[%clk 0:00:16.9]} 1-0

[Event "Late-Titled-Tuesday-Blitz-February-06-2024"]
[Site "Chess.com"]
[Date "2024.02.06"]
[Round "4"]
[White "jcmesafischer"]
[Black "subham777"]
[Result "0-1"]
[WhiteElo "2368"]
[BlackElo "2528"]
[TimeControl "180+1"]
[EndTime "14:39:35 PST"]
[Termination "subham777 won by checkmate"]

1. e4 {[%clk 0:02:56.9]} 1... e6 {[%clk 0:02:55]} 2. Qe2 {[%clk 0:02:52.2]} 2...
c5 {[%clk 0:02:54.6]} 3. Nf3 {[%clk 0:02:50.9]} 3... Nc6 {[%clk 0:02:55.2]} 4.
g3 {[%clk 0:02:48.5]} 4... g6 {[%clk 0:02:54.9]} 5. Bg2 {[%clk 0:02:47.6]} 5...
Bg7 {[%clk 0:02:55.6]} 6. O-O {[%clk 0:02:45.3]} 6... Nge7 {[%clk 0:02:55.7]} 7.
c3 {[%clk 0:02:42.3]} 7... O-O {[%clk 0:02:54.6]} 8. Na3 {[%clk 0:02:40.3]} 8...
d6 {[%clk 0:02:51.6]} 9. Nc2 {[%clk 0:02:38.5]} 9... e5 {[%clk 0:02:41.8]} 10.
d4 {[%clk 0:02:35.3]} 10... cxd4 {[%clk 0:02:41.6]} 11. cxd4 {[%clk 0:02:23.5]}
11... Nxd4 {[%clk 0:02:40.1]} 12. Nfxd4 {[%clk 0:02:19]} 12... exd4 {[%clk
0:02:41]} 13. Rd1 {[%clk 0:02:19.1]} 13... Nc6 {[%clk 0:02:37.9]} 14. b4 {[%clk
0:02:10.9]} 14... d3 {[%clk 0:02:34]} 15. Qxd3 {[%clk 0:02:08.3]} 15... Bxa1
{[%clk 0:02:33]} 16. Nxa1 {[%clk 0:02:09.2]} 16... Nxb4 {[%clk 0:02:29.3]} 17.
Qd2 {[%clk 0:02:06.4]} 17... a5 {[%clk 0:02:23.3]} 18. Bb2 {[%clk 0:02:03.9]}
18... Qe7 {[%clk 0:02:16]} 19. a3 {[%clk 0:01:57.5]} 19... Nc6 {[%clk
0:02:14.8]} 20. Nc2 {[%clk 0:01:57.3]} 20... Be6 {[%clk 0:02:07.7]} 21. Ne3
{[%clk 0:01:55.3]} 21... f6 {[%clk 0:02:03.1]} 22. f4 {[%clk 0:01:51.6]} 22...
Bb3 {[%clk 0:01:43.9]} 23. Rc1 {[%clk 0:01:36.4]} 23... Rad8 {[%clk 0:01:31.5]}
24. Ng4 {[%clk 0:01:23.7]} 24... h5 {[%clk 0:01:22.7]} 25. Qc3 {[%clk
0:01:16.8]} 25... hxg4 {[%clk 0:01:11.1]} 26. Qxb3+ {[%clk 0:01:17.1]} 26... Qf7
{[%clk 0:01:08.5]} 27. Qd1 {[%clk 0:01:18]} 27... Qd7 {[%clk 0:00:54.4]} 28. Bf1
{[%clk 0:01:14.9]} 28... d5 {[%clk 0:00:39.5]} 29. exd5 {[%clk 0:01:12.4]} 29...
Kh7 {[%clk 0:00:26.4]} 30. Bg2 {[%clk 0:00:56.7]} 30... Ne7 {[%clk 0:00:25.4]}
31. d6 {[%clk 0:00:43.6]} 31... Qxd6 {[%clk 0:00:21.3]} 32. Qxg4 {[%clk
0:00:41.4]} 32... Qb6+ {[%clk 0:00:19.4]} 33. Kh1 {[%clk 0:00:13.3]} 33... Qxb2
{[%clk 0:00:19.3]} 34. Re1 {[%clk 0:00:13.4]} 34... Qxa3 {[%clk 0:00:10.7]} 35.
h4 {[%clk 0:00:12]} 35... Qb4 {[%clk 0:00:10.3]} 36. Re4 {[%clk 0:00:10.4]}
36... f5 {[%clk 0:00:05.3]} 37. Rxb4 {[%clk 0:00:08.9]} 37... fxg4 {[%clk
0:00:05.3]} 38. Rxb7 {[%clk 0:00:09.8]} 38... Rf7 {[%clk 0:00:05]} 39. Be4
{[%clk 0:00:08.5]} 39... Rg7 {[%clk 0:00:04.3]} 40. Ra7 {[%clk 0:00:08.7]} 40...
Nf5 {[%clk 0:00:04.2]} 41. Rxa5 {[%clk 0:00:06.1]} 41... Nxg3+ {[%clk
0:00:04.5]} 42. Kg2 {[%clk 0:00:06.7]} 42... Nxe4 {[%clk 0:00:05.4]} 43. h5
{[%clk 0:00:07.1]} 43... gxh5 {[%clk 0:00:05.4]} 44. Rxh5+ {[%clk 0:00:07.9]}
44... Kg8 {[%clk 0:00:06.2]} 45. Re5 {[%clk 0:00:08]} 45... Rd2+ {[%clk
0:00:06.8]} 46. Kf1 {[%clk 0:00:08.6]} 46... Ng3+ {[%clk 0:00:07]} 47. Ke1
{[%clk 0:00:09.2]} 47... Re2+ {[%clk 0:00:07.4]} 48. Rxe2 {[%clk 0:00:09.6]}
48... Nxe2 {[%clk 0:00:08.2]} 49. Kxe2 {[%clk 0:00:10.5]} 49... g3 {[%clk
0:00:09]} 50. Kf1 {[%clk 0:00:09.3]} 50... g2+ {[%clk 0:00:09.7]} 51. Kg1 {[%clk
0:00:10.2]} 51... Kf7 {[%clk 0:00:10.1]} 52. f5 {[%clk 0:00:11.1]} 52... Kf6
{[%clk 0:00:10.6]} 53. Kf2 {[%clk 0:00:10.4]} 53... g1=Q+ {[%clk 0:00:11.5]} 54.
Ke2 {[%clk 0:00:11.3]} 54... Qh2+ {[%clk 0:00:11.1]} 55. Kd3 {[%clk 0:00:12.2]}
55... Rg4 {[%clk 0:00:11.1]} 56. Ke3 {[%clk 0:00:12.4]} 56... Qh3+ {[%clk
0:00:11.5]} 57. Kf2 {[%clk 0:00:13.3]} 57... Rg2+ {[%clk 0:00:12]} 58. Kf1
{[%clk 0:00:14.2]} 58... Qh1# {[%clk 0:00:12.3]} 0-1

[Event "Late-Titled-Tuesday-Blitz-February-06-2024"]
[Site "Chess.com"]
[Date "2024.02.06"]
[Round "4"]
[White "youngdinousaur"]
[Black "ImportedItalianMaple"]
[Result "1-0"]
[WhiteElo "2341"]
[BlackElo "2498"]
[TimeControl "180+1"]
[EndTime "14:39:35 PST"]
[Termination "youngdinousaur won on time"]

1. d4 {[%clk 0:03:00.9]} 1... g6 {[%clk 0:02:59.7]} 2. e4 {[%clk 0:03:00.9]}
2... Bg7 {[%clk 0:03:00]} 3. Nc3 {[%clk 0:03:01.6]} 3... d5 {[%clk 0:03:00.6]}
4. e5 {[%clk 0:03:00.3]} 4... c5 {[%clk 0:02:56.7]} 5. dxc5 {[%clk 0:02:52.1]}
5... d4 {[%clk 0:02:57.1]} 6. Nce2 {[%clk 0:02:49]} 6... Bxe5 {[%clk 0:02:55.7]}
7. Nf3 {[%clk 0:02:48.5]} 7... Bg7 {[%clk 0:02:55.5]} 8. Nexd4 {[%clk
0:02:45.9]} 8... Qa5+ {[%clk 0:02:53.3]} 9. Bd2 {[%clk 0:02:41.8]} 9... Qxc5
{[%clk 0:02:53.8]} 10. Bc3 {[%clk 0:02:42.4]} 10... Nf6 {[%clk 0:02:51.6]} 11.
Be2 {[%clk 0:02:39.6]} 11... O-O {[%clk 0:02:51.8]} 12. O-O {[%clk 0:02:39.3]}
12... Rd8 {[%clk 0:02:51.2]} 13. Nb3 {[%clk 0:02:31.6]} 13... Rxd1 {[%clk
0:02:21.9]} 14. Nxc5 {[%clk 0:02:31.2]} 14... Rxa1 {[%clk 0:02:22]} 15. Rxa1
{[%clk 0:02:30.7]} 15... b6 {[%clk 0:02:12.2]} 16. Nb3 {[%clk 0:02:25.8]} 16...
Bb7 {[%clk 0:02:03.1]} 17. Rd1 {[%clk 0:02:23.6]} 17... Nc6 {[%clk 0:02:03.4]}
18. Nbd4 {[%clk 0:02:14.2]} 18... Rd8 {[%clk 0:01:56.9]} 19. Nxc6 {[%clk
0:02:11.3]} 19... Rxd1+ {[%clk 0:01:57.5]} 20. Bxd1 {[%clk 0:02:12.2]} 20...
Bxc6 {[%clk 0:01:58.2]} 21. Ne5 {[%clk 0:02:10.5]} 21... Bd5 {[%clk 0:01:56.1]}
22. Bf3 {[%clk 0:02:05.4]} 22... Bxa2 {[%clk 0:01:42.7]} 23. b3 {[%clk
0:02:00.1]} 23... Bb1 {[%clk 0:01:31.4]} 24. Bd1 {[%clk 0:01:58.9]} 24... Nd5
{[%clk 0:01:28.2]} 25. Bb2 {[%clk 0:01:50.3]} 25... Nb4 {[%clk 0:01:28.4]} 26.
Ba3 {[%clk 0:01:22.1]} 26... Nxc2 {[%clk 0:01:18.6]} 27. Bxc2 {[%clk 0:01:13.7]}
27... Bxc2 {[%clk 0:01:18.9]} 28. Nc6 {[%clk 0:01:14.6]} 28... Bxb3 {[%clk
0:01:12.9]} 29. Nxa7 {[%clk 0:01:12.1]} 29... Bf8 {[%clk 0:01:00.7]} 30. Nc8
{[%clk 0:01:08.5]} 30... b5 {[%clk 0:00:47.2]} 31. Nxe7+ {[%clk 0:01:03.7]}
31... Kg7 {[%clk 0:00:47.6]} 32. Bb2+ {[%clk 0:01:03.1]} 32... f6 {[%clk
0:00:43]} 33. Nc6 {[%clk 0:01:00.4]} 33... Bd5 {[%clk 0:00:39.8]} 34. Nd4 {[%clk
0:00:57.6]} 34... Bc4 {[%clk 0:00:29.9]} 35. f4 {[%clk 0:00:51.4]} 35... Kf7
{[%clk 0:00:26.7]} 36. Kf2 {[%clk 0:00:50.7]} 36... Bd6 {[%clk 0:00:20.4]} 37.
Ke3 {[%clk 0:00:50]} 37... Ke7 {[%clk 0:00:19.1]} 38. g3 {[%clk 0:00:43.5]}
38... f5 {[%clk 0:00:17.9]} 39. Nc6+ {[%clk 0:00:40.9]} 39... Kd7 {[%clk
0:00:15.7]} 40. Ne5+ {[%clk 0:00:41.2]} 40... Ke6 {[%clk 0:00:10]} 41. Kd4
{[%clk 0:00:39.4]} 41... Bf1 {[%clk 0:00:07.8]} 42. Nc6 {[%clk 0:00:26.3]} 42...
Bc7 {[%clk 0:00:06.2]} 43. Kc5 {[%clk 0:00:21.9]} 43... Bd6+ {[%clk 0:00:05.4]}
44. Kd4 {[%clk 0:00:21.5]} 44... Kd7 {[%clk 0:00:04]} 45. Ne5+ {[%clk
0:00:20.1]} 45... Kc7 {[%clk 0:00:04.2]} 46. h4 {[%clk 0:00:17.3]} 46... Kb6
{[%clk 0:00:02.3]} 47. h5 {[%clk 0:00:17]} 47... Bc5+ {[%clk 0:00:02.3]} 48. Kd5
{[%clk 0:00:13.9]} 1-0

[Event "Late-Titled-Tuesday-Blitz-February-06-2024"]
[Site "Chess.com"]
[Date "2024.02.06"]
[Round "4"]
[White "Felix-Rose"]
[Black "Romadk"]
[Result "1-0"]
[WhiteElo "2390"]
[BlackElo "2522"]
[TimeControl "180+1"]
[EndTime "14:39:37 PST"]
[Termination "Felix-Rose won by resignation"]

1. e4 {[%clk 0:02:59.7]} 1... Nf6 {[%clk 0:02:59.7]} 2. e5 {[%clk 0:03:00.1]}
2... Nd5 {[%clk 0:03:00.2]} 3. d4 {[%clk 0:03:00.5]} 3... d6 {[%clk 0:03:00.6]}
4. c4 {[%clk 0:03:01.1]} 4... Nb6 {[%clk 0:03:01]} 5. exd6 {[%clk 0:03:02]} 5...
cxd6 {[%clk 0:03:01.9]} 6. Nc3 {[%clk 0:03:02.5]} 6... g6 {[%clk 0:03:02.2]} 7.
Be3 {[%clk 0:03:03]} 7... Bg7 {[%clk 0:03:02.8]} 8. Rc1 {[%clk 0:03:03.8]} 8...
O-O {[%clk 0:03:03.1]} 9. b3 {[%clk 0:03:04.3]} 9... Nc6 {[%clk 0:03:03.1]} 10.
d5 {[%clk 0:03:05]} 10... Ne5 {[%clk 0:03:02.8]} 11. Be2 {[%clk 0:03:05.4]}
11... Re8 {[%clk 0:02:59.7]} 12. f4 {[%clk 0:03:03.5]} 12... Ned7 {[%clk
0:02:58.7]} 13. Nf3 {[%clk 0:03:03.9]} 13... e6 {[%clk 0:02:57.6]} 14. dxe6
{[%clk 0:02:59.7]} 14... Rxe6 {[%clk 0:02:54]} 15. Bd4 {[%clk 0:02:57]} 15...
Nf6 {[%clk 0:02:44]} 16. O-O {[%clk 0:02:53.7]} 16... d5 {[%clk 0:02:32.5]} 17.
c5 {[%clk 0:02:45]} 17... Nbd7 {[%clk 0:02:28]} 18. Ng5 {[%clk 0:02:41.2]} 18...
Re8 {[%clk 0:02:12.6]} 19. Bf3 {[%clk 0:02:09.6]} 19... Nf8 {[%clk 0:01:25.6]}
20. Nxd5 {[%clk 0:01:32.3]} 20... Nxd5 {[%clk 0:01:21.4]} 21. Bxg7 {[%clk
0:01:32.7]} 21... Ne3 {[%clk 0:01:13.5]} 22. Qxd8 {[%clk 0:01:29.3]} 22... Rxd8
{[%clk 0:01:14.4]} 23. Bf6 {[%clk 0:01:19.6]} 23... Nxf1 {[%clk 0:01:04.9]} 24.
Bxd8 {[%clk 0:01:19.5]} 24... Nd2 {[%clk 0:01:03.7]} 25. Bd5 {[%clk 0:01:16.3]}
25... Be6 {[%clk 0:01:00.8]} 26. Nxe6 {[%clk 0:01:10.6]} 26... fxe6 {[%clk
0:00:59.1]} 27. Ba5 {[%clk 0:01:10.9]} 27... exd5 {[%clk 0:00:48.2]} 28. Bxd2
{[%clk 0:01:10.9]} 28... Ne6 {[%clk 0:00:46.6]} 29. b4 {[%clk 0:01:08]} 29...
Nd4 {[%clk 0:00:45.7]} 30. Kf2 {[%clk 0:01:06.8]} 30... Re8 {[%clk 0:00:44.4]}
31. Re1 {[%clk 0:01:03.5]} 31... Kf7 {[%clk 0:00:42.8]} 32. Rxe8 {[%clk
0:01:02.9]} 32... Kxe8 {[%clk 0:00:43.7]} 33. Ke3 {[%clk 0:01:00.8]} 33... Nf5+
{[%clk 0:00:44.1]} 34. Kd3 {[%clk 0:01:01.3]} 34... Nh4 {[%clk 0:00:44.6]} 35.
Kd4 {[%clk 0:00:57.1]} 35... Nxg2 {[%clk 0:00:44]} 36. Kxd5 {[%clk 0:00:56.2]}
36... Kd7 {[%clk 0:00:44.7]} 37. b5 {[%clk 0:00:54.8]} 37... Nh4 {[%clk
0:00:43.9]} 38. c6+ {[%clk 0:00:54.2]} 38... bxc6+ {[%clk 0:00:44.8]} 39. bxc6+
{[%clk 0:00:55.1]} 39... Kc7 {[%clk 0:00:45]} 40. Ba5+ {[%clk 0:00:55.2]} 40...
Kc8 {[%clk 0:00:45.6]} 41. Ke6 {[%clk 0:00:47.4]} 41... Nf5 {[%clk 0:00:44.1]}
42. Kf6 {[%clk 0:00:42.9]} 42... Nd4 {[%clk 0:00:37.9]} 43. Kg7 {[%clk
0:00:33.8]} 43... Nxc6 {[%clk 0:00:38.3]} 44. Bc3 {[%clk 0:00:34]} 44... Ne7
{[%clk 0:00:33.2]} 45. Kxh7 {[%clk 0:00:32.5]} 45... Kd7 {[%clk 0:00:28.9]} 46.
Bf6 {[%clk 0:00:30.6]} 46... Nd5 {[%clk 0:00:27.8]} 47. Bg5 {[%clk 0:00:25.4]}
47... Nb4 {[%clk 0:00:23.8]} 48. a4 {[%clk 0:00:21.6]} 48... Ke8 {[%clk
0:00:16.8]} 49. Kxg6 {[%clk 0:00:21.1]} 49... Kf8 {[%clk 0:00:17.7]} 50. h4
{[%clk 0:00:21.3]} 50... Nc6 {[%clk 0:00:14]} 51. h5 {[%clk 0:00:20.4]} 51...
Ne7+ {[%clk 0:00:14.3]} 52. Bxe7+ {[%clk 0:00:20.6]} 52... Kxe7 {[%clk
0:00:15.2]} 53. h6 {[%clk 0:00:21.3]} 1-0